[Event "Nordic Chess-ch 2019"]
[Site "Sarpsborg"]
[Date "2019.06.24"]
[Round "6.41"]
[White "Heikkila, Raine"]
[Black "Stubrud, Jan Magne"]
[Result "1/2-1/2"]
[ECO "A84"]
[WhiteElo "1663"]
[BlackElo "1681"]
[Annotator "NA"]
[PlyCount "148"]
[EventDate "2019.06.21"]
[EventType "swiss"]
[EventCountry "NOR"]
[SourceTitle "playchess.com"]
[Source "ChessBase"]
[SourceQuality "1"]
[TimeControl "40/5400+30:1800+30"]

1. d4 {[%emt 0:00:00]} f5 {[%emt 0:00:23]} 2. c4 {[%emt 0:00:00]} Nf6 {[%emt 0:00:05]} 3. Nf3 {[%emt 0:00:00]} b6 {[%emt 0:00:20]} 4. h3 {[%emt 0:00:08]} Bb7 {[%emt 0:00:37]} 5. Bf4 {[%emt 0:00:20]} e6 {[%emt 0:00:27]} 6. a3 {[%emt 0:00:16]} Be7 {[%emt 0:06:58]} 7. Nc3 {[%emt 0:00:11]} O-O {[%emt 0:00:30]} 8. Nb5 {[%emt 0:00:17]} d6 {[%emt 0:02:28]} 9. e3 {[%emt 0:00:16]} a6 {[%emt 0:01:35]} 10. Nc3 {[%emt 0:00:11]} Nbd7 {[%emt 0:05:19]} 11. Ng5 {[%emt 0:00:23]} Qc8 {[%emt 0:05:20]} 12. Nxe6 {[%emt 0:00:13]} Re8 {[%emt 0:00:33]} 13. d5 {[%emt 0:00:16]} Nc5 {[%emt 0:01:28]} 14. Nxc5 {[%emt 0:00:18]} dxc5 {[%emt 0:01:54]} 15. Bd3 {[%emt 0:00:16]} Qd7 {[%emt 0:05:37]} 16. Qc2 {[%emt 0:00:36]} Bc8 {[%emt 0:01:24]} 17. O-O {[%emt 0:00:35]} Bd6 {[%emt 0:03:35]} 18. Bg5 {[%emt 0:00:17]} Rf8 {[%emt 0:09:36]} 19. Ne2 {[%emt 0:00:57]} Ne8 {[%emt 0:07:46]} 20. f4 {[%emt 0:00:31]} Be7 {[%emt 0:02:00]} 21. Bxe7 {[%emt 0:01:46]} Qxe7 {[%emt 0:00:07]} 22. Rf3 {[%emt 0:00:08]} Nd6 {[%emt 0:03:29]} 23. Ng3 {[%emt 0:00:22]} Bd7 {[%emt 0:05:19]} 24. Re1 {[%emt 0:02:02]} Qf7 {[%emt 0:09:34]} 25. Kh2 {[%emt 0:01:33]} b5 {[%emt 0:04:57]} 26. b3 {[%emt 0:00:15]} bxc4 {[%emt 0:01:32]} 27. bxc4 {[%emt 0:00:18]} Rab8 {[%emt 0:00:31]} 28. Rff1 {[%emt 0:00:34]} Rb6 {[%emt 0:02:46]} 29. Rb1 {[%emt 0:01:35]} Rfb8 {[%emt 0:00:18]} 30. Rxb6 {[%emt 0:00:19]} Rxb6 {[%emt 0:00:39]} 31. Rb1 {[%emt 0:00:36]} Qf6 {[%emt 0:05:54]} 32. Rxb6 {[%emt 0:00:58]} cxb6 {[%emt 0:00:06]} 33. Qb1 {[%emt 0:00:42]} b5 {[%emt 0:00:39]} 34. cxb5 {[%emt 0:00:16]} axb5 {[%emt 0:00:57]} 35. Qc2 {[%emt 0:03:16]} c4 {[%emt 0:01:09]} 36. Be2 {[%emt 0:01:28]} Qa1 {[%emt 0:02:00]} 37. Qd2 {[%emt 0:03:16]} Qxa3 {[%emt 0:02:44]} 38. Qd4 {[%emt 0:00:11]} c3 {[%emt 0:01:17]} 39. Nh5 {[%emt 0:00:48]} Ne8 {[%emt 0:01:18]} 40. Bd3 {[%emt 0:01:05]} b4 {[%emt 0:03:36]} 41. Bc4 {[%emt 0:30:15]} Qa8 {[%emt 0:17:06]} 42. Bb3 {[%emt 0:00:00]} h6 {[%emt 0:04:07]} 43. Qxb4 {[%emt 0:00:00]} Qc8 {[%emt 0:01:38]} 44. Bc2 {[%emt 0:00:00]} g6 {[%emt 0:01:08]} 45. Ng3 {[%emt 0:00:00]} Nf6 {[%emt 0:00:48]} 46. Qd4 {[%emt 0:00:00]} Kf7 {[%emt 0:02:02]} 47. Qe5 {[%emt 0:00:00]} Qc5 {[%emt 0:00:31]} 48. Bb3 {[%emt 0:00:00]} Kg7 {[%emt 0:01:16]} 49. Ne2 {[%emt 0:00:00]} c2 {[%emt 0:04:45]} 50. Bxc2 {[%emt 0:00:00]} Qxc2 {[%emt 0:00:14]} 51. Qe7+ {[%emt 0:00:00]} Kg8 {[%emt 0:00:26]} 52. Nd4 {[%emt 0:00:00]} Qe4 {[%emt 0:01:05]} 53. Qxf6 {[%emt 0:00:00]} Qe8 {[%emt 0:00:38]} 54. Ne6 {[%emt 0:00:00]} Qf7 {[%emt 0:00:54]} 55. Qxf7+ {[%emt 0:00:00]} Kxf7 {[%emt 0:00:04]} 56. Nd8+ {[%emt 0:00:00]} Ke7 {[%emt 0:00:21]} 57. Nb7 {[%emt 0:00:00]} Bc8 {[%emt 0:00:22]} 58. Na5 {[%emt 0:00:00]} Kd6 {[%emt 0:00:11]} 59. Nc4+ {[%emt 0:00:00]} Kc5 {[%emt 0:00:23]} 60. Ne5 {[%emt 0:00:00]} Kxd5 {[%emt 0:00:29]} 61. Nxg6 {[%emt 0:00:00]} Ke4 {[%emt 0:00:09]} 62. Kg3 {[%emt 1:33:16]} Kxe3 {[%emt 0:05:36]} 63. h4 {[%emt 0:00:00]} Be6 {[%emt 0:00:00]} 64. h5 {[%emt 0:00:00]} Bd5 {[%emt 0:00:00]} 65. Kh3 {[%emt 0:00:00]} Ke4 {[%emt 0:00:00]} 66. g3 {[%emt 0:00:00]} Kf3 {[%emt 0:00:00]} 67. Kh4 {[%emt 0:00:00]} Be6 {[%emt 0:00:00]} 68. Ne5+ {[%emt 0:00:00]} Ke4 {[%emt 0:00:00]} 69. Ng6 {[%emt 0:00:00]} Kf3 {[%emt 0:00:00]} 70. Ne5+ {[%emt 0:00:00]} Ke4 {[%emt 0:00:00]} 71. Nc6 {[%emt 0:00:00]} Bg8 {[%emt 0:00:00]} 72. Ne7 {[%emt 0:00:00]} Be6 {[%emt 0:00:07]} 73. Ng6 {[%emt 0:00:00]} Kf3 {[%emt 0:00:45]} 74. Ne5+ {[%emt 0:00:00]} Ke4 {[%emt 0:00:05]} 1/2-1/2

[Event "Nordic Chess-ch 2019"]
[Site "Sarpsborg"]
[Date "2019.06.24"]
[Round "6.42"]
[White "Sather, Lars"]
[Black "Lilleng, Gunnar"]
[Result "1-0"]
[ECO "B12"]
[WhiteElo "1730"]
[BlackElo "1485"]
[Annotator "NA"]
[PlyCount "180"]
[EventDate "2019.06.21"]
[EventType "swiss"]
[EventCountry "NOR"]
[SourceTitle "playchess.com"]
[Source "ChessBase"]
[SourceQuality "1"]
[TimeControl "40/5400+30:1800+30"]

1. d4 {[%emt 0:00:00]} c6 {[%emt 0:00:59]} 2. c4 {[%emt 0:01:05]} d6 {[%emt 0:01:26]} 3. e4 {[%emt 0:01:02]} Nf6 {[%emt 0:00:43]} 4. Bd3 {[%emt 0:00:50]} Bg4 {[%emt 0:04:01]} 5. f3 {[%emt 0:00:51]} Bh5 {[%emt 0:00:45]} 6. Qb3 {[%emt 0:02:26]} Qb6 {[%emt 0:00:28]} 7. Qxb6 {[%emt 0:02:30]} axb6 {[%emt 0:00:22]} 8. Ne2 {[%emt 1:25:16]} Bg6 {[%emt 0:00:37]} 9. Nd2 {[%emt 0:03:28]} h6 {[%emt 0:04:56]} 10. O-O {[%emt 0:00:40]} e6 {[%emt 0:02:54]} 11. f4 {[%emt 0:09:50]} Be7 {[%emt 0:04:46]} 12. Ng3 {[%emt 0:03:01]} O-O {[%emt 1:14:03]} 13. Nf3 {[%emt 0:05:28]} Na6 {[%emt 0:04:42]} 14. a3 {[%emt 0:01:44]} Nb4 {[%emt 0:03:31]} 15. Bb1 {[%emt 0:02:48]} Rfd8 {[%emt 0:10:53]} 16. Bd2 {[%emt 0:00:29]} Na6 {[%emt 0:00:13]} 17. Re1 {[%emt 0:03:26]} Bf8 {[%emt 0:02:53]} 18. Nh4 {[%emt 0:03:36]} Bh7 {[%emt 0:00:20]} 19. Bc3 {[%emt 0:01:45]} Nd7 {[%emt 0:03:01]} 20. f5 {[%emt 0:03:52]} e5 {[%emt 0:02:46]} 21. Ba2 {[%emt 0:49:41]} c5 {[%emt 0:02:28]} 22. dxe5 {[%emt 0:02:43]} dxe5 {[%emt 0:02:47]} 23. Nf3 {[%emt 0:00:38]} f6 {[%emt 0:02:03]} 24. Nf1 {[%emt 0:00:24]} Nab8 {[%emt 0:01:56]} 25. Ne3 {[%emt 0:02:44]} Nc6 {[%emt 0:00:18]} 26. Nd5 {[%emt 0:03:52]} Nd4 {[%emt 0:00:20]} 27. Bb1 {[%emt 0:37:59]} Rdc8 {[%emt 0:03:30]} 28. Bd3 {[%emt 0:01:06]} Bd6 {[%emt 0:02:04]} 29. Nd2 {[%emt 0:01:28]} Kf7 {[%emt 0:02:29]} 30. Re3 {[%emt 0:01:54]} Rg8 {[%emt 0:01:46]} 31. Rg3 {[%emt 0:01:37]} Kf8 {[%emt 0:01:56]} 32. Re1 {[%emt 0:30:45]} Kf7 {[%emt 0:02:10]} 33. Nf3 {[%emt 0:01:00]} Rac8 {[%emt 0:03:16]} 34. Nh4 {[%emt 0:00:58]} Ra8 {[%emt 0:00:00]} 35. Ng6 {[%emt 0:00:12]} Rae8 {[%emt 0:00:00]} 36. Be2 {[%emt 0:03:04]} Bxg6 {[%emt 0:00:00]} 37. fxg6+ {[%emt 0:02:16]} Kf8 {[%emt 0:00:00]} 38. Bg4 {[%emt 0:00:14]} Ne6 {[%emt 0:00:00]} 39. Rd1 {[%emt 0:01:32]} Bb8 {[%emt 0:00:00]} 40. Ne3 {[%emt 0:01:10]} Ke7 {[%emt 0:00:00]} 41. Nf5+ {[%emt 0:32:01]} Kd8 {[%emt 0:34:00]} 42. Nd6 {[%emt 0:22:44]} Re7 {[%emt 0:11:03]} 43. Nxb7+ {[%emt 0:01:15]} Kc7 {[%emt 0:01:09]} 44. Nd6 {[%emt 0:00:22]} Nd4 {[%emt 0:00:47]} 45. Nf5 {[%emt 0:03:03]} Ree8 {[%emt 0:00:43]} 46. Ne3 {[%emt 0:00:32]} Nf8 {[%emt 0:02:32]} 47. Nd5+ {[%emt 0:19:14]} Kb7 {[%emt 0:00:43]} 48. Bh5 {[%emt 0:01:04]} Nfe6 {[%emt 0:00:00]} 49. Bd2 {[%emt 0:00:00]} Bd6 {[%emt 0:00:00]} 50. Rf1 {[%emt 0:00:00]} Ng5 {[%emt 0:00:00]} 51. Nc3 {[%emt 0:00:00]} Nge6 {[%emt 0:00:00]} 52. Nd5 {[%emt 0:00:00]} Nc7 {[%emt 0:00:00]} 53. Nc3 {[%emt 0:00:00]} Ra8 {[%emt 0:00:00]} 54. h4 {[%emt 0:00:00]} Rad8 {[%emt 0:00:00]} 55. Bd1 {[%emt 0:00:00]} Ra8 {[%emt 0:00:00]} 56. h5 {[%emt 0:00:00]} Rad8 {[%emt 0:00:00]} 57. Rh3 {[%emt 0:00:00]} Rdf8 {[%emt 0:00:00]} 58. g4 {[%emt 0:00:00]} Nce6 {[%emt 0:00:00]} 59. Nd5 {[%emt 0:00:00]} Ng5 {[%emt 0:00:00]} 60. Re3 {[%emt 0:00:00]} Nge6 {[%emt 0:00:00]} 61. Ree1 {[%emt 0:00:00]} Nc7 {[%emt 0:00:00]} 62. Ne3 {[%emt 0:25:02]} Nce6 {[%emt 0:00:00]} 63. Nf5 {[%emt 0:00:50]} Nxf5 {[%emt 0:00:00]} 64. exf5 {[%emt 0:01:30]} Nd4 {[%emt 0:00:00]} 65. Bf3+ {[%emt 0:23:55]} Kc7 {[%emt 0:00:00]} 66. Bd5 {[%emt 0:00:19]} Rh8 {[%emt 0:00:00]} 67. Rf2 {[%emt 0:03:31]} Rb8 {[%emt 0:10:58]} 68. a4 {[%emt 0:01:10]} Rbd8 {[%emt 0:00:00]} 69. Bc3 {[%emt 0:17:45]} Rd7 {[%emt 0:00:00]} 70. Rb1 {[%emt 0:00:50]} Nb3 {[%emt 0:00:00]} 71. Rd1 {[%emt 0:00:57]} Be7 {[%emt 0:00:00]} 72. Rff1 {[%emt 0:16:58]} Rhd8 {[%emt 0:00:00]} 73. Rd3 {[%emt 0:01:27]} Nd4 {[%emt 0:00:00]} 74. Kf2 {[%emt 0:00:40]} Nc6 {[%emt 0:14:28]} 75. Rfd1 {[%emt 0:14:19]} Nd4 {[%emt 0:00:00]} 76. Bd2 {[%emt 0:00:00]} Rb8 {[%emt 0:00:00]} 77. Ra1 {[%emt 0:01:00]} Bd8 {[%emt 0:00:00]} 78. b4 {[%emt 0:00:00]} Kd6 {[%emt 0:00:00]} 79. b5 {[%emt 0:00:00]} Ra7 {[%emt 0:00:00]} 80. Ra2 {[%emt 0:00:00]} Bc7 {[%emt 0:00:00]} 81. Rda3 {[%emt 0:00:00]} Ke7 {[%emt 0:00:00]} 82. a5 {[%emt 0:00:00]} bxa5 {[%emt 0:00:00]} 83. Bxa5 {[%emt 0:00:00]} Bxa5 {[%emt 0:04:30]} 84. Rxa5 {[%emt 0:00:00]} Rd7 {[%emt 0:00:00]} 85. Ra7 {[%emt 0:00:00]} Rbd8 {[%emt 0:05:30]} 86. b6 {[%emt 0:05:30]} Nb5 {[%emt 0:00:00]} 87. Rxd7+ {[%emt 0:00:00]} Rxd7 {[%emt 0:00:00]} 88. Bc6 {[%emt 0:01:00]} Rd4 {[%emt 0:00:00]} 89. cxb5 {[%emt 0:00:00]} c4 {[%emt 0:00:00]} 90. b7 {[%emt 0:00:00]} c3 {[%emt 0:00:00]} 1-0

[Event "Nordic Chess-ch 2019"]
[Site "Sarpsborg"]
[Date "2019.06.25"]
[Round "7.1"]
[White "Ingebretsen, Jens E"]
[Black "Urkedal, Frode Olav Olsen"]
[Result "0-1"]
[ECO "C84"]
[WhiteElo "2263"]
[BlackElo "2525"]
[Annotator "ChessBase"]
[PlyCount "146"]
[EventDate "2019.06.21"]
[EventType "swiss"]
[EventCountry "NOR"]
[SourceTitle "playchess.com"]
[Source "ChessBase"]
[SourceQuality "1"]
[TimeControl "40/5400+30:1800+30"]

1. e4 {[%emt 0:00:00]} e5 {[%emt 0:00:49]} 2. Nf3 {[%emt 0:00:00]} Nc6 {[%emt 0:00:05]} 3. Bb5 {[%emt 0:00:00]} a6 {[%emt 0:00:31]} 4. Ba4 {[%emt 0:00:00]} Nf6 {[%emt 0:00:41]} 5. d3 {[%emt 0:00:12]} b5 {[%emt 0:00:53]} 6. Bb3 {[%emt 0:00:05]} Be7 {[%emt 0:00:39]} 7. O-O {[%emt 0:00:15]} O-O {[%emt 0:00:32]} 8. a4 {[%emt 0:00:08]} b4 {[%emt 0:01:07]} 9. a5 {[%emt 0:00:28]} d6 {[%emt 0:00:26]} 10. h3 {[%emt 0:01:17]} Rb8 {[%emt 0:02:16]} 11. Nbd2 {[%emt 0:00:49]} Be6 {[%emt 0:04:55]} 12. Nc4 {[%emt 0:00:17]} h6 {[%emt 0:01:13]} 13. Be3 {[%emt 0:00:05]} Qc8 {[%emt 0:00:18]} 14. Nfd2 {[%emt 0:00:06]} Rd8 {[%emt 0:03:27]} 15. Ba4 {[%emt 0:00:05]} Qb7 {[%emt 0:03:35]} 16. c3 {[%emt 0:00:06]} Na7 {[%emt 0:02:56]} 17. cxb4 {[%emt 0:23:42]} Nc6 {[%emt 0:01:16]} 18. Bxc6 {[%emt 0:12:39]} Qxc6 {[%emt 0:00:50]} 19. Rc1 {[%emt 0:00:02]} Qd7 {[%emt 0:07:44]} 20. d4 {[%emt 0:04:16]} exd4 {[%emt 0:01:54]} 21. Bxd4 {[%emt 0:00:04]} Rxb4 {[%emt 0:00:09]} 22. Bc3 {[%emt 0:11:50]} Rb5 {[%emt 0:08:55]} 23. Na3 {[%emt 0:03:35]} Rbb8 {[%emt 0:04:47]} 24. f4 {[%emt 0:02:47]} d5 {[%emt 0:06:13]} 25. Be5 {[%emt 0:15:30]} Rb7 {[%emt 0:22:05]} 26. f5 {[%emt 0:08:41]} dxe4 {[%emt 0:00:50]} 27. fxe6 {[%emt 0:01:34]} Qxd2 {[%emt 0:04:28]} 28. exf7+ {[%emt 0:01:26]} Kxf7 {[%emt 0:00:06]} 29. Qh5+ {[%emt 0:01:58]} Kg8 {[%emt 0:01:09]} 30. Qf5 {[%emt 0:01:12]} Qd7 {[%emt 0:02:05]} 31. Qg6 {[%emt 0:00:44]} Qe8 {[%emt 0:01:57]} 32. Qf5 {[%emt 0:01:11]} Kh8 {[%emt 0:01:22]} 33. Nc4 {[%emt 0:01:22]} Rd5 {[%emt 0:03:38]} 34. Qf4 {[%emt 0:01:03]} Qg6 {[%emt 0:00:59]} 35. Rfe1 {[%emt 0:02:04]} Rb4 {[%emt 0:07:48]} 36. Bxc7 {[%emt 0:04:30]} Rc5 {[%emt 0:01:36]} 37. Ne5 {[%emt 0:01:18]} Qh5 {[%emt 0:01:15]} 38. Kh1 {[%emt 0:01:34]} Nd5 {[%emt 0:01:31]} 39. Qg3 {[%emt 0:00:21]} Rxc1 {[%emt 0:01:20]} 40. Rxc1 {[%emt 0:00:06]} Bg5 {[%emt 0:00:39]} 41. Rf1 {[%emt 0:09:45]} Kh7 {[%emt 0:05:35]} 42. Ng4 {[%emt 0:05:32]} e3 {[%emt 0:04:48]} 43. Qf3 {[%emt 0:07:31]} Rb5 {[%emt 0:05:41]} 44. Be5 {[%emt 0:02:34]} Qg6 {[%emt 0:01:10]} 45. Bd4 {[%emt 0:02:52]} Qe6 {[%emt 0:07:15]} 46. Re1 {[%emt 0:04:03]} Rb4 {[%emt 0:01:06]} 47. Bxe3 {[%emt 0:02:05]} Re4 {[%emt 0:01:05]} 48. g3 {[%emt 0:01:35]} Nxe3 {[%emt 0:00:27]} 49. Nf2 {[%emt 0:00:30]} Re5 {[%emt 0:01:09]} 50. h4 {[%emt 0:00:08]} Bf6 {[%emt 0:01:04]} 51. Nd3 {[%emt 0:00:35]} Qh3+ {[%emt 0:00:48]} 52. Kg1 {[%emt 0:00:00]} Re7 {[%emt 0:01:16]} 53. Nf2 {[%emt 0:01:26]} Qe6 {[%emt 0:00:09]} 54. Nd1 {[%emt 0:00:21]} Bd4 {[%emt 0:01:43]} 55. Nxe3 {[%emt 0:00:08]} Bxe3+ {[%emt 0:00:16]} 56. Kg2 {[%emt 0:00:06]} Kg8 {[%emt 0:01:03]} 57. Qa8+ {[%emt 0:00:40]} Re8 {[%emt 0:00:06]} 58. Qf3 {[%emt 0:00:06]} Qb3 {[%emt 0:02:06]} 59. Kh3 {[%emt 0:00:44]} Qd3 {[%emt 0:00:48]} 60. Rd1 {[%emt 0:00:29]} Qe4 {[%emt 0:00:16]} 61. Qxe4 {[%emt 0:01:03]} Rxe4 {[%emt 0:00:03]} 62. Rd6 {[%emt 0:00:08]} Rb4 {[%emt 0:00:57]} 63. Rxa6 {[%emt 0:00:07]} Rxb2 {[%emt 0:00:13]} 64. h5 {[%emt 0:00:12]} Ra2 {[%emt 0:00:19]} 65. Kg4 {[%emt 0:00:12]} Kh7 {[%emt 0:00:29]} 66. Ra8 {[%emt 0:00:06]} Bb6 {[%emt 0:00:39]} 67. a6 {[%emt 0:00:09]} Ra5 {[%emt 0:00:11]} 68. Kh4 {[%emt 0:00:15]} Bf2 {[%emt 0:00:53]} 69. Rf8 {[%emt 0:00:06]} Be3 {[%emt 0:01:44]} 70. Ra8 {[%emt 0:00:18]} Ra3 {[%emt 0:00:39]} 71. Kh3 {[%emt 0:01:35]} Bf4 {[%emt 0:00:51]} 72. a7 {[%emt 0:00:14]} Rxg3+ {[%emt 0:01:07]} 73. Kh4 {[%emt 0:00:08]} Ra3 {[%emt 0:00:06]} 0-1

[Event "Nordic Chess-ch 2019"]
[Site "Sarpsborg"]
[Date "2019.06.25"]
[Round "7.3"]
[White "Dragicevic, Drazen"]
[Black "Westerberg, Jonathan"]
[Result "0-1"]
[ECO "A13"]
[WhiteElo "2359"]
[BlackElo "2545"]
[Annotator "ChessBase"]
[PlyCount "82"]
[EventDate "2019.06.21"]
[EventType "swiss"]
[EventCountry "NOR"]
[SourceTitle "playchess.com"]
[Source "ChessBase"]
[SourceQuality "1"]
[TimeControl "40/5400+30:1800+30"]

1. c4 {[%emt 0:00:00]} e6 {[%emt 0:00:00]} 2. g3 {[%emt 0:00:00]} d5 {[%emt 0:00:00]} 3. Bg2 {[%emt 0:00:03]} g6 {[%emt 0:00:18]} 4. Nf3 {[%emt 0:02:01]} Bg7 {[%emt 0:00:05]} 5. O-O {[%emt 0:00:37]} Ne7 {[%emt 0:00:18]} 6. d3 {[%emt 0:04:12]} O-O {[%emt 0:01:02]} 7. cxd5 {[%emt 0:01:27]} exd5 {[%emt 0:00:55]} 8. e4 {[%emt 0:00:55]} h6 {[%emt 0:05:03]} 9. Nc3 {[%emt 0:03:49]} Be6 {[%emt 0:10:19]} 10. h4 {[%emt 0:05:26]} Nbc6 {[%emt 0:11:22]} 11. Bf4 {[%emt 0:04:21]} Qd7 {[%emt 0:02:10]} 12. Kh2 {[%emt 0:04:17]} Rac8 {[%emt 0:01:58]} 13. Qa4 {[%emt 0:14:51]} d4 {[%emt 0:10:24]} 14. Ne2 {[%emt 0:55:01]} Rfd8 {[%emt 0:02:04]} 15. Rfc1 {[%emt 0:00:00]} Kh7 {[%emt 0:04:15]} 16. b4 {[%emt 0:00:00]} a6 {[%emt 0:01:13]} 17. Qa3 {[%emt 0:00:00]} Bg4 {[%emt 0:06:26]} 18. Neg1 {[%emt 0:00:00]} Rh8 {[%emt 0:08:43]} 19. Bh3 {[%emt 0:00:00]} Bxh3 {[%emt 0:08:01]} 20. Nxh3 {[%emt 0:00:00]} f6 {[%emt 0:04:02]} 21. Qb3 {[%emt 0:00:00]} Nd8 {[%emt 0:00:01]} 22. e5 {[%emt 0:00:00]} Rf8 {[%emt 0:04:33]} 23. exf6 {[%emt 0:00:00]} Bxf6 {[%emt 0:00:56]} 24. Rc5 {[%emt 0:00:00]} Ne6 {[%emt 0:01:47]} 25. Rc2 {[%emt 0:00:00]} Nd5 {[%emt 0:02:41]} 26. Be5 {[%emt 0:00:00]} Bh8 {[%emt 0:03:10]} 27. Bxh8 {[%emt 0:00:00]} Rxf3 {[%emt 0:00:05]} 28. Be5 {[%emt 0:00:00]} Rcf8 {[%emt 0:00:58]} 29. Re1 {[%emt 0:00:00]} c6 {[%emt 0:01:23]} 30. Rce2 {[%emt 0:00:06]} Nc3 {[%emt 0:02:52]} 31. Rd2 {[%emt 0:00:20]} R8f7 {[%emt 0:00:40]} 32. Kg2 {[%emt 0:03:00]} c5 {[%emt 0:01:39]} 33. bxc5 {[%emt 0:01:15]} Qc6 {[%emt 0:00:00]} 34. Kg1 {[%emt 0:00:29]} Nxc5 {[%emt 0:00:08]} 35. Qc2 {[%emt 0:03:28]} Re7 {[%emt 0:02:26]} 36. Kf1 {[%emt 0:01:35]} Qe8 {[%emt 0:00:26]} 37. Ng1 {[%emt 0:00:18]} Rf5 {[%emt 0:01:06]} 38. Bxd4 {[%emt 0:00:51]} Rxe1+ {[%emt 0:00:05]} 39. Kg2 {[%emt 0:00:06]} Qc6+ {[%emt 0:02:01]} 40. Kh2 {[%emt 0:00:38]} Nb5 {[%emt 0:00:38]} 41. Bb2 {[%emt 0:30:26]} Ne6 {[%emt 0:31:40]} 0-1

[Event "Nordic Chess-ch 2019"]
[Site "Sarpsborg"]
[Date "2019.06.25"]
[Round "7.4"]
[White "Tryggestad, Andreas Garberg"]
[Black "Chatalbashev, Boris"]
[Result "1-0"]
[ECO "B06"]
[WhiteElo "2324"]
[BlackElo "2527"]
[Annotator "ChessBase"]
[PlyCount "81"]
[EventDate "2019.06.21"]
[EventType "swiss"]
[EventCountry "NOR"]
[SourceTitle "playchess.com"]
[Source "ChessBase"]
[SourceQuality "1"]
[TimeControl "40/5400+30:1800+30"]

1. e4 {[%emt 0:00:00]} g6 {[%emt 0:00:00]} 2. d4 {[%emt 0:00:00]} Bg7 {[%emt 0:00:00]} 3. Nc3 {[%emt 0:00:00]} c6 {[%emt 0:01:42]} 4. Be3 {[%emt 0:00:00]} d6 {[%emt 0:00:27]} 5. Qd2 {[%emt 0:00:05]} b5 {[%emt 0:00:17]} 6. f3 {[%emt 0:00:13]} Nd7 {[%emt 0:01:09]} 7. h4 {[%emt 0:00:11]} h6 {[%emt 0:00:40]} 8. a4 {[%emt 0:00:56]} b4 {[%emt 0:00:07]} 9. Nd1 {[%emt 0:00:20]} a5 {[%emt 0:00:32]} 10. c3 {[%emt 0:00:38]} bxc3 {[%emt 0:02:33]} 11. bxc3 {[%emt 0:00:08]} Ngf6 {[%emt 0:01:17]} 12. Bd3 {[%emt 0:00:53]} e5 {[%emt 0:09:41]} 13. Ne2 {[%emt 0:00:31]} h5 {[%emt 0:00:15]} 14. Nf2 {[%emt 0:02:41]} d5 {[%emt 0:04:15]} 15. Bg5 {[%emt 0:07:30]} O-O {[%emt 0:04:34]} 16. O-O {[%emt 0:08:16]} Qc7 {[%emt 0:00:20]} 17. Bh6 {[%emt 0:05:59]} Re8 {[%emt 0:09:46]} 18. Bxg7 {[%emt 0:00:07]} Kxg7 {[%emt 0:00:02]} 19. Rfe1 {[%emt 0:12:28]} Rb8 {[%emt 0:04:14]} 20. Qg5 {[%emt 0:09:17]} dxe4 {[%emt 0:09:42]} 21. Nxe4 {[%emt 0:12:29]} Nxe4 {[%emt 0:01:56]} 22. Bxe4 {[%emt 0:00:12]} Nf6 {[%emt 0:02:16]} 23. Ng3 {[%emt 0:01:36]} exd4 {[%emt 0:22:41]} 24. Bxg6 {[%emt 0:05:11]} fxg6 {[%emt 0:00:27]} 25. Nxh5+ {[%emt 0:00:06]} Nxh5 {[%emt 0:00:17]} 26. Rxe8 {[%emt 0:00:03]} Nf6 {[%emt 0:00:49]} 27. Rae1 {[%emt 0:00:27]} Rb1 {[%emt 0:05:47]} 28. Rxb1 {[%emt 0:08:43]} Nxe8 {[%emt 0:00:01]} 29. Re1 {[%emt 0:00:08]} Nf6 {[%emt 0:00:41]} 30. h5 {[%emt 0:00:10]} Bf5 {[%emt 0:00:26]} 31. h6+ {[%emt 0:13:51]} Kf7 {[%emt 0:00:02]} 32. Qh4 {[%emt 0:00:03]} dxc3 {[%emt 0:11:46]} 33. h7 {[%emt 0:00:06]} g5 {[%emt 0:00:32]} 34. h8=N+ {[%emt 0:01:01]} Kf8 {[%emt 0:01:00]} 35. Qd4 {[%emt 0:11:50]} Nd5 {[%emt 0:00:53]} 36. Qc5+ {[%emt 0:00:21]} Kg7 {[%emt 0:00:21]} 37. Qd4+ {[%emt 0:00:17]} Kf8 {[%emt 0:05:04]} 38. Re5 {[%emt 0:00:27]} Bh7 {[%emt 0:01:04]} 39. Qc5+ {[%emt 0:00:12]} Kg7 {[%emt 0:00:03]} 40. Rxd5 {[%emt 0:00:06]} c2 {[%emt 0:00:52]} 41. Qd4+ {[%emt 0:04:20]} 1-0

[Event "Nordic Chess-ch 2019"]
[Site "Sarpsborg"]
[Date "2019.06.25"]
[Round "7.5"]
[White "Notkevich, Benjamin Arvola"]
[Black "Vestby-Ellingsen, Mads"]
[Result "1-0"]
[ECO "E94"]
[WhiteElo "2485"]
[BlackElo "2345"]
[Annotator "ChessBase"]
[PlyCount "51"]
[EventDate "2019.06.21"]
[EventType "swiss"]
[EventCountry "NOR"]
[SourceTitle "playchess.com"]
[Source "ChessBase"]
[SourceQuality "1"]
[TimeControl "40/5400+30:1800+30"]

1. d4 {[%emt 0:00:00]} Nf6 {[%emt 0:00:00]} 2. c4 {[%emt 0:00:00]} g6 {[%emt 0:00:00]} 3. Nc3 {[%emt 0:00:00]} Bg7 {[%emt 0:00:02]} 4. e4 {[%emt 0:00:00]} d6 {[%emt 0:00:06]} 5. Nf3 {[%emt 0:00:01]} O-O {[%emt 0:00:10]} 6. Be2 {[%emt 0:00:02]} Na6 {[%emt 0:00:10]} 7. O-O {[%emt 0:00:20]} e5 {[%emt 0:00:09]} 8. Be3 {[%emt 0:00:33]} Ng4 {[%emt 0:00:31]} 9. Bg5 {[%emt 0:00:06]} Qe8 {[%emt 0:00:09]} 10. c5 {[%emt 0:01:15]} exd4 {[%emt 0:21:06]} 11. Nd5 {[%emt 0:00:06]} Be6 {[%emt 0:33:24]} 12. cxd6 {[%emt 0:10:36]} Bxd5 {[%emt 0:02:35]} 13. exd5 {[%emt 0:00:06]} cxd6 {[%emt 0:06:17]} 14. Re1 {[%emt 0:00:12]} d3 {[%emt 0:16:20]} 15. Bxd3 {[%emt 0:03:35]} Ne5 {[%emt 0:00:09]} 16. Nxe5 {[%emt 0:05:21]} dxe5 {[%emt 0:02:24]} 17. d6 {[%emt 0:00:06]} Qd7 {[%emt 0:05:58]} 18. Be7 {[%emt 0:06:48]} Rfe8 {[%emt 0:00:08]} 19. Rc1 {[%emt 0:10:41]} Rac8 {[%emt 0:03:49]} 20. Bb5 {[%emt 0:01:09]} Qxb5 {[%emt 0:02:02]} 21. Rxc8 {[%emt 0:00:21]} Rxc8 {[%emt 0:01:19]} 22. d7 {[%emt 0:00:05]} Qc6 {[%emt 0:00:22]} 23. d8=Q+ {[%emt 0:00:14]} Qe8 {[%emt 0:00:11]} 24. Qxe8+ {[%emt 0:00:06]} Rxe8 {[%emt 0:00:08]} 25. Qd7 {[%emt 0:00:11]} Rb8 {[%emt 0:00:09]} 26. Rc1 {[%emt 0:00:10]} 1-0